bitfinex/quotes_SOLUSD_20250429
["timestamp","ask_amount","ask_price","bid_price","bid_amount"]
[1745903889317,0.063,146.07,146.02,13.74]
[1745903889507,11.65861519,146.07,146.03,11.59561519]
[1745903889720,11.59561519,146.06,146.02,25.33561519]
[1745903889908,13.17341519,146.07,146.02,13.74]
[1745903890107,13.17341519,146.07,146.03,11.59561519]
[1745903890524,1.5778,146.07,146.05,11.59561519]
[1745903891729,0.063,146.07,146.06,11.59561519]
[1745903891935,0.063,146.07,146.02,13.74]
[1745903892231,0.063,146.07,146.04,11.59561519]
[1745903892425,0.063,146.07,146.06,11.59561519]
[1745903894823,0.063,146.07,146.06,17.75746648]
[1745903896329,0.063,146.07,146.06,36.40711534]
[1745903896531,0.063,146.07,146.06,117.30711534]
[1745903897924,0.063,146.07,146.06,128.90273053]
[1745903898233,0.063,146.09,146.07,18.64964886]
[1745903898412,0.063,146.09,146.08,17.75662285]
[1745903898714,0.063,146.09,146.08,128.9018869]
[1745903899521,0.063,146.12,146.1,18.64964886]
[1745903899722,0.063,146.12,146.11,18.46807359]
[1745903900619,0.063,146.12,146.09,18.46807359]
[1745903900822,18.53107359,146.12,146.09,18.46807359]
[1745903901135,18.46807359,146.11,146.07,32.14807359]
[1745903901844,18.53107359,146.12,146.08,18.46807359]
[1745903902526,18.53107359,146.12,146.07,13.68]
[1745903902726,18.53107359,146.12,146.08,18.46807359]
[1745903902947,18.46807359,146.1,146.07,13.68]
[1745903903246,18.46807359,146.1,146.06,18.46807359]
[1745903903554,18.46807359,146.1,146.03,94.58]
[1745903903853,18.46807359,146.1,146.06,18.46807359]
[1745903906315,0.063,146.12,146.06,18.46807359]
[1745903906516,18.46807359,146.1,146.06,18.46807359]
[1745903906735,18.46807359,146.1,146.03,94.58]
[1745903907147,18.46807359,146.09,146.05,18.46807359]
[1745903908540,18.46807359,146.1,146.06,18.46807359]
[1745903909546,18.53107359,146.12,146.08,18.46807359]
[1745903909746,0.063,146.12,146.09,18.46807359]
[1745903910048,0.063,146.12,146.11,18.46807359]
[1745903911338,18.53107359,146.12,146.08,32.14807359]
[1745903911649,18.46807359,146.11,146.08,18.46807359]
[1745903911823,18.46807359,146.11,146.07,18.46807359]
[1745903913227,18.46807359,146.11,146.08,18.46807359]
[1745903915253,18.46807359,146.11,146.04,102.24391903]
[1745903915546,18.46807359,146.09,146.05,18.46807359]
[1745903915853,18.46807359,146.1,146.06,18.46807359]
[1745903916148,26.48297359,146.12,146.08,18.46807359]
[1745903916523,1.6822,146.12,146.09,18.46807359]
[1745903916724,20.15027359,146.12,146.08,18.46807359]
[1745903916953,1.6822,146.12,146.09,18.46807359]
[1745903917955,20.15027359,146.12,146.08,18.46807359]
[1745903918653,1.6822,146.12,146.08,18.46807359]
[1745903918949,20.15027359,146.12,146.08,18.46807359]
[1745903920060,18.46807359,146.11,146.07,18.46807359]
[1745903920236,1.6822,146.12,146.08,18.46807359]
[1745903920428,0.063,146.12,146.09,18.46807359]
[1745903923873,0.063,146.12,146.11,18.46807359]
[1745903924460,0.063,146.12,146.11,24.62781624]
[1745903924762,0.063,146.12,146.11,105.52781624]
[1745903924969,0.063,146.12,146.11,127.09736794]
[1745903927060,0.063,146.12,146.11,99.36807359]
[1745903928780,0.063,146.12,146.09,13.66]
[1745903928933,0.063,146.12,146.1,18.46807359]
[1745903929262,0.063,146.12,146.09,18.46807359]
[1745903929453,0.063,146.12,146.1,18.46807359]
[1745903931861,0.063,146.12,146.11,18.46807359]
[1745903932564,0.063,146.12,146.08,80.9]
[1745903932761,0.063,146.12,146.1,18.46807359]
[1745903932939,0.063,146.12,146.11,18.46807359]
[1745903935243,0.063,146.16,146.12,18.64964886]
[1745903935448,0.063,146.16,146.15,18.46807359]
[1745903935654,0.063,146.16,146.12,80.9]
[1745903935951,0.063,146.16,146.14,18.46807359]
[1745903936659,0.063,146.16,146.13,18.46807359]
[1745903937054,0.063,146.16,146.14,18.46807359]
[1745903938564,0.063,146.16,146.15,18.46807359]
[1745903945979,18.53107359,146.16,146.11,18.46807359]
[1745903946164,0.063,146.16,146.15,18.46807359]
[1745903946366,0.063,146.16,146.14,18.46807359]
[1745903946569,0.063,146.16,146.13,18.46807359]
[1745903946762,18.53107359,146.16,146.12,18.46807359]
[1745903946983,0.063,146.16,146.13,18.46807359]
[1745903947162,0.063,146.16,146.14,18.46807359]
[1745903949209,18.53107359,146.16,146.12,18.46807359]
[1745903949489,0.063,146.16,146.13,18.46807359]
[1745903949689,0.063,146.16,146.14,18.46807359]
[1745903950698,0.063,146.16,146.13,18.46807359]
[1745903951201,0.063,146.16,146.14,18.46807359]
[1745903952000,0.063,146.16,146.13,18.46807359]
[1745903952999,0.063,146.16,146.14,18.46807359]
[1745903953884,0.063,146.16,146.15,18.46807359]
[1745903954302,0.063,146.16,146.14,18.46807359]
[1745903956094,0.063,146.16,146.15,18.46807359]
[1745903957575,0.063,146.16,146.15,11.5370801]
[1745903958584,0.063,146.16,146.15,17.69513689]
[1745903959601,0.063,146.16,146.15,24.61608405]
[1745903965708,0.063,146.16,146.15,61.72376017]
[1745903965880,0.063,146.16,146.15,143.99163973]
[1745903966081,0.063,146.16,146.15,142.62376017]
[1745903968607,0.063,146.16,146.15,148.00377103]
[1745903969406,0.063,146.17,146.16,55.56570338]
[1745903969604,0.063,146.17,146.16,56.93342748]
[1745903970404,0.063,146.17,146.16,143.99106294]
[1745903970602,0.063,146.17,146.16,142.62333884]
[1745903973888,0.063,146.17,146.16,87.05763546]
[1745903974217,0.063,146.17,146.16,123.97368998]
[1745903978216,0.063,146.17,146.16,99.35802726]
[1745903978913,0.063,146.17,146.15,13.64]
[1745903979093,0.063,146.17,146.16,18.45802726]
[1745903980018,0.063,146.17,146.15,13.64]
[1745903980321,0.063,146.17,146.15,18.45802726]
[1745903981015,0.063,146.17,146.16,18.45802726]
[1745903981714,0.063,146.17,146.16,11.53997235]
[1745903982495,0.063,146.17,146.16,23.0799447]
[1745903982691,0.063,146.17,146.16,11.53997235]
[1745903982894,0.063,146.17,146.16,17.69760781]
[1745903983512,0.063,146.17,146.16,11.53997235]
[1745903984691,0.063,146.17,146.15,11.53997235]
[1745903984897,0.063,146.17,146.16,11.53997235]
[1745903985394,0.063,146.17,146.14,25.17997235]
[1745903985724,0.063,146.17,146.15,11.53997235]
[1745903987933,0.063,146.17,146.16,11.53997235]
[1745903988432,0.063,146.17,146.15,11.53997235]
[1745903988927,0.063,146.17,146.16,11.53997235]
[1745903992341,0.063,146.17,146.14,13.64]
[1745903992633,11.60297235,146.17,146.13,11.53997235]
[1745903993733,0.063,146.17,146.14,11.53997235]
[1745903993935,0.063,146.17,146.15,11.53997235]
[1745903994904,0.063,146.17,146.16,11.53997235]
[1745903999615,0.063,146.17,146.15,11.53997235]
[1745904000016,0.063,146.17,146.16,11.53997235]
[1745904002434,0.063,146.17,146.13,11.53997235]
[1745904002814,0.063,146.17,146.11,6.15956862]
[1745904003014,0.063,146.17,146.14,11.53997235]
[1745904003619,0.063,146.17,146.16,11.53997235]
[1745904006239,0.063,146.17,146.15,11.53997235]
[1745904007355,0.063,146.17,146.16,11.53997235]
[1745904009726,0.063,146.17,146.15,11.53997235]
[1745904010624,0.063,146.17,146.14,11.53997235]
[1745904011444,0.063,146.17,146.16,11.53997235]
[1745904013228,0.063,146.17,146.15,11.53997235]
[1745904013635,0.063,146.17,146.14,11.53997235]
[1745904013839,0.063,146.17,146.13,11.53997235]
[1745904015318,0.063,146.17,146.11,100.69965139]
[1745904015319,11.60297235,146.17,146.11,13.64]
[1745904015641,11.53997235,146.16,146.12,11.53997235]
[1745904015945,0.063,146.17,146.13,11.53997235]
[1745904016146,0.063,146.17,146.14,11.53997235]
[1745904020462,0.063,146.17,146.15,11.53997235]
[1745904020958,0.063,146.17,146.14,11.53997235]
[1745904023063,11.53997235,146.15,146.11,11.53997235]
[1745904027666,11.53997235,146.14,146.11,11.53997235]
[1745904027837,11.53997235,146.14,146.1,11.60297235]
[1745904028748,11.53997235,146.13,146.1,0.063]
[1745904029365,11.53997235,146.14,146.1,11.60297235]
[1745904029845,11.53997235,146.15,146.12,11.53997235]
[1745904030048,108.07997235,146.16,146.12,11.53997235]
[1745904030269,25.17997235,146.16,146.12,11.53997235]
[1745904031360,11.53997235,146.15,146.11,11.53997235]
[1745904031659,11.53997235,146.15,146.11,17.69970662]
[1745904032569,11.53997235,146.15,146.12,11.53997235]
[1745904032748,25.17997235,146.16,146.12,11.53997235]
[1745904033864,13.64,146.16,146.13,11.53997235]
[1745904034037,13.64,146.16,146.14,11.53997235]
[1745904034238,0.063,146.17,146.15,11.53997235]
[1745904034460,0.063,146.17,146.16,11.53997235]
[1745904034761,0.063,146.17,146.15,11.53997235]
[1745904035066,11.60297235,146.17,146.13,11.53997235]
[1745904036964,11.60297235,146.17,146.12,6.15920978]
[1745904037168,0.063,146.17,146.16,11.53997235]
[1745904037348,0.063,146.17,146.16,23.0799447]
[1745904038432,0.063,146.17,146.16,29.23758016]
[1745904038668,0.063,146.17,146.16,111.50551126]
[1745904039565,0.063,146.17,146.16,110.13758016]
[1745904039868,0.063,146.17,146.16,98.59760781]
[1745904041971,0.063,146.17,146.16,110.13758016]
[1745904047550,0.063,146.18,146.17,18.64964886]
[1745904047770,0.063,146.18,146.17,31.55725524]
[1745904047973,0.063,146.18,146.17,112.45725524]
[1745904049171,0.063,146.18,146.17,118.61446944]
[1745904051085,0.063,146.18,146.17,99.96482058]
[1745904053787,0.063,146.18,146.17,118.61446944]
[1745904055296,0.063,146.22,146.18,18.64964886]
[1745904055472,0.063,146.22,146.21,11.53997235]
[1745904056499,0.063,146.22,146.21,17.69550206]
[1745904060874,0.063,146.22,146.21,11.53997235]
[1745904062398,0.063,146.22,146.21,17.69550206]
[1745904065115,0.063,146.22,146.21,11.53997235]
[1745904066111,0.063,146.22,146.21,17.69550206]
[1745904066319,0.063,146.22,146.21,130.15266286]
[1745904066610,0.063,146.25,146.22,41.72959356]
[1745904066914,0.063,146.25,146.24,11.53997235]
[1745904067502,0.063,146.25,146.24,17.6942393]
[1745904075794,0.063,146.25,146.24,98.5942393]
[1745904076517,0.063,146.25,146.24,92.43997235]
[1745904076903,0.063,146.25,146.24,98.5942393]
[1745904078318,0.063,146.25,146.24,92.43997235]
[1745904080020,0.063,146.25,146.24,80.9]
[1745904080316,0.063,146.25,146.22,11.53997235]
[1745904080915,11.53997235,146.23,146.18,11.53997235]
[1745904081218,11.53997235,146.22,146.18,11.53997235]
[1745904081713,5.00152561,146.21,146.18,11.53997235]
[1745904082901,5.00152561,146.21,146.2,11.53997235]
[1745904083694,5.00152561,146.24,146.2,11.53997235]
[1745904083896,5.00152561,146.24,146.22,11.53997235]
[1745904084305,5.00152561,146.24,146.23,11.53997235]
[1745904087029,5.00152561,146.24,146.2,24.80545507]
[1745904087330,5.00152561,146.24,146.23,11.53997235]
[1745904090634,5.00152561,146.24,146.23,29.23463252]
[1745904090840,0.063,146.25,146.23,29.23463252]
[1745904091016,0.063,146.25,146.24,11.53997235]
[1745904091635,0.063,146.25,146.24,17.6942393]
[1745904092813,0.063,146.25,146.24,11.53997235]
[1745904093020,0.063,146.25,146.24,17.6942393]
[1745904093510,0.063,146.25,146.24,98.5942393]
[1745904097214,0.063,146.25,146.24,117.24388816]
[1745904097414,15.2983,146.31,146.24,117.24388816]
[1745904097415,18.60780341,146.39,146.29,24.92544886]
[1745904097625,10.41910341,146.39,146.38,11.53997235]
[1745904097931,41.67641365,146.42,146.38,30.18962121]
[1745904098114,41.67641365,146.42,146.41,11.53997235]
[1745904098516,53.216386,146.42,146.38,11.53997235]
[1745904099114,53.216386,146.42,146.34,13.62]
[1745904099308,11.53997235,146.4,146.36,11.53997235]
[1745904099513,11.53997235,146.37,146.34,13.62]
[1745904099830,11.53997235,146.37,146.33,11.53997235]
[1745904100718,11.53997235,146.37,146.34,11.53997235]
[1745904101429,11.53997235,146.36,146.32,11.53997235]
[1745904101637,18.42205664,146.36,146.32,18.42205664]
[1745904101810,18.42205664,146.35,146.3,13.62]
[1745904102130,18.42205664,146.35,146.31,18.42205664]
[1745904102340,18.42205664,146.36,146.32,18.42205664]
[1745904102910,19.93995664,146.37,146.33,18.42205664]
[1745904103138,1.5179,146.37,146.34,18.42205664]
[1745904103434,19.93995664,146.37,146.33,18.42205664]
[1745904103640,18.42205664,146.36,146.32,18.42205664]
[1745904103934,18.42205664,146.35,146.31,18.42205664]
[1745904105337,18.42205664,146.35,146.3,94.52]
[1745904105547,18.42205664,146.35,146.32,18.42205664]
[1745904106335,19.93995664,146.37,146.33,18.42205664]
[1745904106542,1.5179,146.37,146.34,18.42205664]
[1745904107042,19.93995664,146.37,146.33,18.42205664]
[1745904107206,18.42205664,146.36,146.32,18.42205664]
[1745904107634,19.93995664,146.37,146.33,18.42205664]
[1745904108334,18.42205664,146.34,146.3,112.94205664]
[1745904108519,18.42205664,146.35,146.31,18.42205664]
[1745904108713,19.93995664,146.37,146.33,18.42205664]
[1745904109340,18.42205664,146.36,146.32,18.42205664]
[1745904110144,1.5179,146.37,146.34,18.42205664]
[1745904110434,18.42205664,146.36,146.32,18.42205664]
[1745904110834,18.42205664,146.36,146.33,18.42205664]
[1745904111016,19.93995664,146.37,146.33,18.42205664]
[1745904111218,1.5179,146.37,146.34,18.42205664]
[1745904111920,18.42205664,146.38,146.34,18.42205664]
[1745904112324,18.42205664,146.37,146.33,18.42205664]
[1745904112640,40.45774886,146.4,146.33,18.42205664]
[1745904112835,18.42205664,146.36,146.33,18.42205664]
[1745904114246,18.42205664,146.37,146.33,18.42205664]
[1745904114447,18.42205664,146.38,146.34,18.42205664]
[1745904115947,18.42205664,146.37,146.34,18.42205664]
[1745904116445,18.42205664,146.37,146.3,100.6716884]
[1745904116625,18.42205664,146.37,146.33,18.42205664]
[1745904117046,18.42205664,146.37,146.3,119.09374504]
[1745904117047,18.42205664,146.37,146.34,18.42205664]
[1745904118535,18.42205664,146.38,146.34,18.42205664]
[1745904119147,18.42205664,146.39,146.35,18.42205664]
[1745904119749,18.42205664,146.38,146.34,18.42205664]
[1745904119951,18.42205664,146.37,146.33,18.42205664]
[1745904121423,18.42205664,146.34,146.28,18.42205664]
[1745904121647,18.42205664,146.32,146.28,18.42205664]
[1745904121828,18.42205664,146.32,146.27,94.52]
[1745904122029,18.42205664,146.33,146.29,18.42205664]
[1745904122242,18.42205664,146.32,146.28,18.42205664]
[1745904122841,18.42205664,146.3,146.27,80.9]
[1745904123044,18.42205664,146.3,146.26,18.48505664]
[1745904123239,18.42205664,146.31,146.27,18.42205664]
[1745904123440,1.5823,146.34,146.3,18.42205664]
[1745904123746,20.00435664,146.34,146.3,18.42205664]
[1745904124651,18.42205664,146.36,146.32,18.42205664]
[1745904124851,18.42205664,146.35,146.31,18.42205664]
[1745904125438,18.42205664,146.34,146.3,18.42205664]
[1745904125638,18.42205664,146.34,146.29,18.42205664]
[1745904125839,18.42205664,146.34,146.3,18.42205664]
[1745904127052,18.42205664,146.33,146.26,87.11642217]
[1745904127256,18.42205664,146.33,146.29,18.42205664]
[1745904127953,18.42205664,146.34,146.3,18.42205664]
[1745904128647,18.42205664,146.33,146.29,18.42205664]
[1745904129157,18.42205664,146.34,146.3,18.42205664]
[1745904130358,18.42205664,146.33,146.29,18.42205664]
[1745904130743,18.42205664,146.33,146.26,80.963]
[1745904130968,18.42205664,146.31,146.27,18.42205664]
[1745904131141,18.42205664,146.31,146.26,80.963]
[1745904131342,18.42205664,146.3,146.26,80.963]
[1745904131559,18.42205664,146.3,146.26,99.38505664]
[1745904131759,82.9,146.35,146.29,18.42205664]
[1745904131965,18.42205664,146.34,146.3,18.42205664]
[1745904133543,8.1999,146.37,146.3,18.42205664]
[1745904133765,18.42205664,146.34,146.3,18.42205664]
[1745904134966,18.42205664,146.33,146.26,80.963]
[1745904135268,18.42205664,146.31,146.26,80.963]
[1745904135476,18.42205664,146.31,146.27,18.42205664]
[1745904135978,18.42205664,146.3,146.26,99.38505664]
[1745904138073,18.42205664,146.31,146.27,18.42205664]
[1745904138249,18.42205664,146.32,146.27,18.42205664]
[1745904138570,18.42205664,146.31,146.27,18.42205664]
[1745904139273,18.42205664,146.31,146.26,99.38505664]
[1745904139773,18.42205664,146.3,146.26,99.38505664]
[1745904140149,18.42205664,146.29,146.26,0.063]
[1745904140950,18.42205664,146.3,146.26,18.48505664]
[1745904141457,19.93605664,146.31,146.27,18.42205664]
[1745904142476,18.42205664,146.32,146.27,18.42205664]
[1745904143881,18.42205664,146.31,146.27,18.42205664]
[1745904145375,18.42205664,146.29,146.26,0.063]
[1745904145575,18.42205664,146.28,146.26,0.063]
[1745904145747,18.42205664,146.27,146.26,0.063]
[1745904145943,18.64964886,146.3,146.26,0.063]
[1745904146160,18.42205664,146.28,146.26,0.063]
[1745904146352,18.64964886,146.3,146.26,0.063]
[1745904146353,18.42205664,146.29,146.26,0.063]
[1745904146683,18.42205664,146.31,146.27,18.42205664]
[1745904147167,18.42205664,146.3,146.26,0.063]
[1745904147346,18.42205664,146.3,146.26,18.48505664]
[1745904147755,18.42205664,146.31,146.27,18.42205664]
[1745904148850,18.42205664,146.29,146.26,0.063]
[1745904149250,18.42205664,146.3,146.26,18.48505664]
[1745904151687,18.42205664,146.31,146.26,18.48505664]
[1745904151860,18.42205664,146.31,146.26,0.063]
[1745904152052,18.42205664,146.31,146.26,18.48505664]
[1745904155289,18.42205664,146.31,146.27,18.42205664]
[1745904155493,11.52004701,146.32,146.28,11.52004701]
[1745904155663,11.52004701,146.33,146.29,11.52004701]
[1745904156982,11.52004701,146.32,146.26,87.11627497]
[1745904157285,11.52004701,146.32,146.28,11.52004701]
[1745904157484,18.43300745,146.32,146.28,18.43300745]
[1745904161985,18.43300745,146.33,146.29,18.43300745]
[1745904163191,13.62,146.34,146.29,18.43300745]
[1745904163596,18.43300745,146.33,146.29,18.43300745]
[1745904163773,18.43300745,146.35,146.31,18.43300745]
[1745904163973,19.97100745,146.37,146.33,18.43300745]
[1745904164589,18.43300745,146.36,146.32,18.43300745]
[1745904170496,18.43300745,146.35,146.31,18.43300745]
[1745904171072,1.538,146.37,146.32,18.43300745]
[1745904171305,18.43300745,146.36,146.32,18.43300745]
[1745904172272,19.97100745,146.37,146.33,18.43300745]
[1745904172475,1.538,146.37,146.33,18.43300745]
[1745904172716,32.05300745,146.38,146.34,18.43300745]
[1745904174696,13.62,146.38,146.35,18.43300745]
[1745904174873,32.05300745,146.38,146.35,18.43300745]
[1745904175610,32.05300745,146.38,146.34,18.43300745]
[1745904176498,18.43300745,146.38,146.35,18.43300745]
[1745904176692,18.43300745,146.39,146.35,18.43300745]
[1745904177406,1.5443,146.41,146.35,18.43300745]
[1745904177599,15.137,146.42,146.38,11.50557451]
[1745904177803,26.64257451,146.42,146.38,11.50557451]
[1745904178498,15.137,146.42,146.38,11.50557451]
[1745904178710,11.50557451,146.44,146.39,11.50557451]
[1745904179005,11.50557451,146.44,146.4,11.50557451]
[1745904179175,11.50557451,146.43,146.39,11.50557451]
[1745904179376,11.50557451,146.43,146.36,6.1491272]
[1745904179377,11.50557451,146.44,146.4,11.50557451]
[1745904179775,11.50557451,146.41,146.37,11.50557451]
[1745904181300,11.50557451,146.39,146.35,11.50557451]
[1745904181674,11.50557451,146.41,146.37,11.50557451]
[1745904181879,11.50557451,146.42,146.38,11.50557451]
[1745904182187,94.40557451,146.44,146.4,11.50557451]
[1745904182702,11.53557451,146.45,146.41,11.50557451]
[1745904183084,11.50557451,146.44,146.4,11.50557451]
[1745904183600,11.53557451,146.45,146.41,11.50557451]
[1745904184299,0.03,146.45,146.42,11.50557451]
[1745904185797,0.03,146.45,146.43,11.50557451]
[1745904187518,0.03,146.45,146.42,11.50557451]
[1745904187806,0.03,146.45,146.43,11.50557451]
[1745904188181,0.03,146.45,146.44,11.50557451]
[1745904188997,0.03,146.45,146.43,11.50557451]
[1745904190403,0.03,146.45,146.44,11.50557451]
[1745904190609,0.03,146.45,146.43,11.50557451]
[1745904191000,0.03,146.45,146.44,11.50557451]
[1745904191317,83.35282731,146.59,146.51,18.64964886]
[1745904191487,83.35282731,146.59,146.51,3.55869309]
[1745904191688,83.35282731,146.59,146.54,11.50557451]
[1745904192093,83.35282731,146.59,146.55,11.50557451]
[1745904192609,83.35282731,146.59,146.56,11.50557451]
[1745904193016,83.35282731,146.59,146.56,30.15522337]
[1745904193311,83.35282731,146.59,146.56,11.50557451]
[1745904193524,83.35282731,146.59,146.56,18.35736162]
[1745904194318,83.35282731,146.59,146.56,55.3643721]
[1745904195713,83.35282731,146.59,146.58,55.3643721]
[1745904196815,83.35282731,146.59,146.58,142.40436391]
[1745904197391,0.9846453,146.6,146.58,148.50646391]
[1745904197590,6.3288,146.71,146.6,18.64964886]
[1745904197814,19.9288,146.71,146.65,18.35736162]
[1745904198015,18.35736162,146.7,146.65,18.35736162]
[1745904198220,18.35736162,146.69,146.65,18.35736162]
[1745904198402,18.35736162,146.67,146.63,18.35736162]
[1745904198996,18.35736162,146.68,146.63,18.35736162]
[1745904199196,18.35736162,146.68,146.64,18.35736162]
[1745904199428,18.35736162,146.67,146.6,6.13915416]
[1745904199626,18.35736162,146.67,146.62,18.35736162]
[1745904199813,18.35736162,146.67,146.64,26.13800846]
[1745904200123,18.35736162,146.67,146.66,10.47586717]
[1745904200305,6.46308829,146.67,146.66,10.47586717]
[1745904200715,6.46308829,146.67,146.66,4.62674306]
[1745904200923,14.58840769,146.71,146.66,4.62674306]
[1745904200924,18.35736162,146.68,146.66,4.62674306]
[1745904201807,18.35736162,146.68,146.64,18.35736162]
[1745904203013,18.35736162,146.67,146.6,6.13915416]
[1745904203213,18.35736162,146.67,146.63,18.35736162]
[1745904203522,18.35736162,146.68,146.64,18.35736162]
[1745904204415,32.15736162,146.69,146.65,18.35736162]
[1745904204622,1.5629,146.72,146.67,18.35736162]
[1745904204820,18.35736162,146.71,146.67,18.35736162]
[1745904205025,19.92026162,146.72,146.68,18.35736162]
[1745904205405,19.92026162,146.72,146.67,18.35736162]
[1745904205727,18.35736162,146.71,146.67,18.35736162]
[1745904206135,18.35736162,146.7,146.66,18.35736162]
[1745904206709,18.35736162,146.7,146.66,24.49383755]
[1745904207008,18.35736162,146.71,146.67,18.35736162]
[1745904207428,18.35736162,146.68,146.64,18.35736162]
[1745904207601,18.35736162,146.67,146.63,6.13789811]
[1745904207807,18.35736162,146.68,146.64,18.35736162]
[1745904208519,18.35736162,146.69,146.65,18.35736162]
[1745904208832,18.35736162,146.68,146.65,18.35736162]
[1745904209407,18.35736162,146.69,146.65,18.35736162]
[1745904210128,18.35736162,146.7,146.66,18.35736162]
[1745904210306,18.35736162,146.71,146.67,18.35736162]
[1745904212509,102.82026162,146.72,146.68,18.35736162]
[1745904213745,19.92026162,146.72,146.68,18.35736162]
[1745904214058,1.5629,146.72,146.67,18.35736162]
[1745904214216,18.35736162,146.7,146.66,18.35736162]
[1745904216332,18.35736162,146.7,146.66,24.49393627]
[1745904217449,18.35736162,146.7,146.66,18.35736162]
[1745904218524,18.35736162,146.7,146.66,24.49396921]
[1745904219625,11.46024875,146.7,146.66,11.46024875]
[1745904220731,11.46024875,146.68,146.64,11.46024875]
[1745904220942,11.46024875,146.68,146.63,87.03779666]
[1745904221147,11.46024875,146.68,146.64,11.46024875]
[1745904221840,11.46024875,146.67,146.62,0.063]
[1745904222027,11.46024875,146.67,146.63,11.46024875]
[1745904222538,11.46024875,146.68,146.64,11.46024875]
[1745904222913,11.46024875,146.68,146.62,0.063]
[1745904223114,94.36024875,146.71,146.67,11.46024875]
[1745904223314,13.02314875,146.72,146.68,11.46024875]
[1745904223616,1.5629,146.72,146.68,11.46024875]
[1745904223826,13.02314875,146.72,146.68,11.46024875]
[1745904224755,1.5629,146.72,146.68,11.46024875]
[1745904224932,13.02314875,146.72,146.68,11.46024875]
[1745904226347,94.36024875,146.74,146.7,11.46024875]
[1745904226526,11.46024875,146.74,146.7,11.46024875]
[1745904228124,0.03,146.75,146.7,11.46024875]
[1745904228332,11.49024875,146.75,146.71,11.46024875]
[1745904228851,11.46024875,146.74,146.7,11.46024875]
[1745904229643,0.03,146.75,146.65,93.72354661]
[1745904229644,11.46024875,146.73,146.65,93.72354661]
[1745904229833,11.46024875,146.72,146.68,11.46024875]
[1745904230735,11.46024875,146.73,146.69,11.46024875]
[1745904231132,11.46024875,146.71,146.65,80.9]
[1745904231332,11.46024875,146.69,146.65,92.36024875]
[1745904231529,18.34101228,146.69,146.65,99.24101228]
[1745904231725,18.34101228,146.68,146.64,18.34101228]
[1745904239661,18.34101228,146.68,146.63,13.66]
[1745904239949,18.34101228,146.68,146.64,18.34101228]
[1745904242056,18.34101228,146.69,146.65,18.34101228]
[1745904242839,82.9,146.71,146.65,18.34101228]
[1745904243164,18.34101228,146.7,146.66,18.34101228]
[1745904243337,18.34101228,146.69,146.65,18.34101228]
[1745904245551,18.34101228,146.68,146.64,18.34101228]
[1745904247062,18.34101228,146.67,146.63,18.34101228]
[1745904247436,18.34101228,146.68,146.63,18.34101228]
[1745904247757,18.34101228,146.66,146.62,18.40401228]
[1745904247965,18.34101228,146.65,146.62,0.063]
[1745904250853,18.34101228,146.64,146.62,0.063]
[1745904251484,18.34101228,146.63,146.62,0.063]
[1745904253566,11.47562063,146.63,146.62,0.063]
[1745904258872,82.9,146.66,146.62,0.063]
[1745904259067,94.37562063,146.66,146.62,11.53862063]
[1745904259248,11.47562063,146.66,146.62,11.53862063]
[1745904259447,11.47562063,146.65,146.62,0.063]
[1745904260470,122.77894886,146.69,146.62,0.063]
[1745904260772,11.47562063,146.65,146.62,0.063]
[1745904262978,11.47562063,146.64,146.62,0.063]
[1745904263357,11.47562063,146.63,146.62,0.063]
[1745904263681,11.47562063,146.64,146.62,0.063]
[1745904264953,11.47562063,146.65,146.62,0.063]
[1745904265588,11.47562063,146.64,146.62,0.063]
[1745904265886,11.47562063,146.65,146.62,0.063]
[1745904267782,11.47562063,146.64,146.62,0.063]
[1745904268990,11.47562063,146.63,146.62,0.063]
[1745904270565,82.9,146.68,146.62,0.063]
[1745904270867,11.47562063,146.65,146.62,0.063]
[1745904271792,11.47562063,146.66,146.62,11.53862063]
[1745904272992,11.47562063,146.65,146.62,0.063]
[1745904273496,18.34770483,146.65,146.62,0.063]
[1745904273704,82.9,146.68,146.62,0.063]
[1745904274012,18.34770483,146.65,146.62,0.063]
[1745904275193,82.9,146.68,146.63,18.34770483]
[1745904275509,18.34770483,146.67,146.63,18.34770483]
[1745904275687,18.34770483,146.68,146.63,18.34770483]
[1745904278001,18.34770483,146.68,146.64,18.34770483]
[1745904280111,82.9,146.71,146.65,18.34770483]
[1745904280397,82.9,146.71,146.64,18.34770483]
[1745904280610,18.34770483,146.69,146.65,18.34770483]
[1745904280995,82.9,146.71,146.68,18.34770483]